[Event "BSV-SCK IM 2022"]
[Site "Berlin"]
[Date "2022.04.09"]
[Round "2.3"]
[White "Schmidek, Emil"]
[Black "Glantz, Robert"]
[Result "1-0"]
[ECO "D36"]
[WhiteElo "2383"]
[BlackElo "2318"]
[Annotator "TA"]
[PlyCount "55"]
[EventDate "2022.04.08"]
[EventCountry "GER"]
[SourceTitle "playchess.com"]
[Source "ChessBase"]
[SourceQuality "1"]
[TimeControl "5400+30"]

{[%evp 17,55,-4,-4,-14,-11,-7,0,0,0,-9,-3,-22,-9,-12,-20,-20,0,0,0,9,6,2,10,11,22,22,32,16,21,19,25,8,38,31,379,368,513,551,1119,464]} 1. d4 {[%emt 0:00:03]} d5 {[%emt 0:02:55]} 2. c4 {[%emt 0:00:06]} e6 {[%emt 0:00:20]} 3. Nc3 {[%emt 0:00:03]} Nf6 {[%emt 0:00:44]} 4. cxd5 {[%emt 0:00:07]} exd5 {[%emt 0:00:17]} 5. Bg5 {[%emt 0:00:10]} c6 {[%emt 0:00:36]} 6. e3 {[%emt 0:00:08]} Be7 {[%emt 0:00:54]} 7. Bd3 {[%emt 0:00:10]} Nbd7 {[%emt 0:00:34]} 8. Qc2 {[%emt 0:00:29]} h6 {[%emt 0:00:35]} 9. Bf4 {[%emt 0:00:41]} Nh5 {[%emt 0:08:49]} 10. Nf3 {[%emt 0:00:39] now supersedes 10.Bg3. D36: Queen's Gambit Declined: Exchange Variation: Main line (5 Bg5 c6 6 Qc2).} Nxf4 {[%emt 0:01:57]} 11. exf4 {[%emt 0:00:18]} O-O {[%emt 0:02:03]} 12. O-O {[%emt 0:00:39] The position is equal.} Re8 {[%emt 0:02:45]} 13. Ne5 {[%emt 0:13:49]} Nf8 {[%emt 0:00:22] [#]} 14. Ne2 $146 {[%emt 0:05:25][%cal Bc3e2,Be2g1,Bg1f3][%mdl 32]} ({Predecessor:} 14. Rfe1 Bd6 15. Qd2 Qf6 16. Ne2 Bf5 17. Bxf5 Qxf5 18. Ng3 Qf6 19. Rac1 Re7 20. Ng4 Rxe1+ 21. Rxe1 Qxf4 22. Qxf4 Bxf4 {1-0 (33) Thoma,W (2071)-Lipp,A (2139) Lienz 2015}) 14... Bd6 {[%emt 0:11:26]} 15. Rfe1 {[%emt 0:03:53]} Qc7 {[%emt 0:11:21]} 16. g3 {[%emt 0:23:40]} Re7 {[%emt 0:06:50]} 17. Kg2 {[%emt 0:02:07]} Bd7 {[%emt 0:02:46]} 18. Ng1 {[%emt 0:03:29]} Rae8 {[%emt 0:06:10]} 19. Ngf3 {[%emt 0:02:06]} Bc8 {[%emt 0:05:19]} 20. a3 {[%emt 0:07:06]} a5 {[%emt 0:05:23]} 21. Red1 {[%emt 0:05:48]} Rd8 {[%emt 0:07:25]} 22. Rdc1 {[%emt 0:04:33]} Qb6 {[%emt 0:01:23]} 23. Rab1 {[%emt 0:06:03]} Ne6 {[%emt 0:09:28]} 24. Rd1 {[%emt 0:06:51]} Kf8 {[%emt 0:04:10]} 25. Bf5 {[%emt 0:04:47] [#] And now Bxe6 would win.} c5 $2 {[%emt 0:02:20][%mdl 8192]} ({Better is} 25... Kg8 $14) 26. Bxe6 $18 {[%emt 0:00:39]} Bxe5 {[%emt 0:05:07]} 27. Bxc8 {[%emt 0:01:18]} ({Less strong is} 27. dxe5 Qxe6 28. Qxc5 b6 $16) 27... Bd6 {[%emt 0:02:01] [#]} 28. Bf5 {Weighted Error Value: White=0.03 (flawless) /Black=0.47} (28. Qh7 $142 $1 {[%cal Rh7h8]} Re4 29. Bf5) 1-0

[Event "BSV-SCK IM 2022"]
[Site "Berlin"]
[Date "2022.04.09"]
[Round "2.4"]
[White "Mcgowan, Daniel"]
[Black "Mirzoev, Emil"]
[Result "0-1"]
[ECO "B30"]
[WhiteElo "2101"]
[BlackElo "2460"]
[Annotator "TA"]
[PlyCount "72"]
[EventDate "2022.04.08"]
[EventCountry "GER"]
[SourceTitle "playchess.com"]
[Source "ChessBase"]
[SourceQuality "1"]
[TimeControl "5400+30"]

{[%evp 16,71,0,-8,-1,-46,-37,-48,-50,-58,-41,-73,-64,-64,-61,-62,-57,-60,-32,-45,-32,-41,-20,-25,-19,-26,-26,-43,-35,-58,-60,-283,-289,-391,-252,-269,-243,-238,-116,-338,-340,-379,-387,-621,-615,-399,-412,-1078,-392,-385,-401,-357,-377,-29971,-29972,-29998,-29999,-29999]} 1. e4 {[%emt 0:00:07]} c5 {[%emt 0:39:02]} 2. Nf3 {[%emt 0:00:28]} Nc6 {[%emt 0:00:31]} 3. Bb5 {[%emt 0:01:08]} e6 {[%emt 0:00:46]} 4. b3 {[%emt 0:01:20]} Nge7 {[%emt 0:00:42]} 5. Bb2 {[%emt 0:02:04]} a6 {[%emt 0:03:42]} 6. Bxc6 {[%emt 0:00:47]} Nxc6 {[%emt 0:00:04]} 7. O-O {[%emt 0:01:01]} b5 {[%emt 0:00:35]} 8. d4 {[%emt 0:02:18]} cxd4 {[%emt 0:00:11]} 9. Nxd4 {[%emt 0:00:08]} Qf6 {[%emt 0:00:08] B30: Sicilian: 2...Nc6 3 Bb5, lines without ...g6.} 10. c3 {[%emt 0:01:50]} Bb7 {[%emt 0:00:56]} 11. Nxc6 {[%emt 0:05:58]} Bxc6 {[%emt 0:00:13] Black is slightly better.} 12. Qe2 {[%emt 0:01:19]} Bc5 {[%emt 0:01:24]} 13. Nd2 {[%emt 0:07:04]} O-O {[%emt 0:00:16] [#]} 14. Nf3 $146 {[%emt 0:01:57]} ({Predecessor:} 14. Kh1 Qf4 15. Rad1 Rad8 16. c4 bxc4 17. Qxc4 Bd6 18. g3 Qg5 19. Qe2 Bc7 20. a4 {0-1 (33) Rosito,J (2360)-Pierrot,J (2420) Buenos Aires 1998}) 14... Qf4 {[%emt 0:04:37]} 15. Rfe1 {[%emt 0:10:03]} f5 {[%emt 0:00:10][%cal Rf5e4] &Nero is more active.} 16. e5 {[%emt 0:00:47]} Qh6 {[%emt 0:02:17]} 17. Nd4 {[%emt 0:07:44]} Bb7 {[%emt 0:05:47]} 18. Rad1 {[%emt 0:05:05]} f4 {[%emt 0:00:32][%cal Of4f3] And now ...f3! would win.} 19. Qg4 {[%emt 0:08:09] Inhibits f3.} Rf7 {[%emt 0:02:41]} 20. Nf3 {[%emt 0:06:54] Against g5} Raf8 {[%emt 0:02:56]} 21. Qg5 {[%emt 0:04:08]} Kh8 {[%emt 0:06:09]} 22. Rd2 {[%emt 0:04:13]} Rg8 {[%emt 0:00:36] aiming for ...Bxf3.} 23. Qg4 {[%emt 0:01:51]} (23. Rd3 $1 $15) 23... g5 $19 {[%emt 0:00:42]} 24. Red1 {[%emt 0:03:31]} Rgg7 {[%emt 0:01:59]} 25. c4 {[%emt 0:08:06]} Qg6 {[%emt 0:11:08] ...h5 is the strong threat.} 26. Ne1 {[%emt 0:01:52]} bxc4 {[%emt 0:01:11]} (26... h5 $1 $19 {[%cal Rh5g4]} 27. Qe2 g4) 27. bxc4 $2 {[%emt 0:00:34]} (27. Rc2 $17 {is a better defense.}) 27... h5 {[%emt 0:00:10]} 28. Qe2 {[%emt 0:01:02]} f3 $1 {[%emt 0:00:55]} 29. Nxf3 {[%emt 0:01:41]} (29. Qd3 Be4 30. Qf1) 29... Bxf3 {[%emt 0:02:11]} 30. gxf3 {[%emt 0:00:08]} g4 {[%emt 0:00:02]} 31. Qe4 {[%emt 0:01:37]} (31. Qd3 $142 Qg5 32. f4 Rxf4 33. Qb3) 31... gxf3+ $2 {[%emt 0:00:42]} (31... Rf5 32. fxg4 Rxf2 $1 {[%mdl 512]} 33. Qxg6 Rxd2+ 34. Kf1 Rxd1+ 35. Ke2 Rxg6 36. Kxd1 Rxg4) 32. Qxg6 {[%emt 0:00:08]} Rxg6+ {[%emt 0:00:02]} 33. Kh1 {[%emt 0:00:38]} Rg2 {[%emt 0:00:35] Strongly threatening ...Rfg7.} 34. Bd4 $2 {[%emt 0:03:34] [#]} (34. Rd3 $19 Rxf2 35. Ba3) 34... Rf4 $1 {[%emt 0:01:12] Black mates.} 35. Bxc5 {[%emt 0:00:15]} (35. Be3 Rh4) 35... Rh4 {[%emt 0:00:06][%csl Gg2][%cal Rh4h2]} 36. Be3 {[%emt 0:00:04]} Rhxh2# {[%emt 0:13:20] Weighted Error Value: White=0.77/Black=0.25 (precise)} 0-1

[Event "BSV-SCK IM 2022"]
[Site "Berlin"]
[Date "2022.04.09"]
[Round "2.5"]
[White "Glek, Igor"]
[Black "Ermitsch, Magnus"]
[Result "1/2-1/2"]
[ECO "B30"]
[WhiteElo "2476"]
[BlackElo "2127"]
[Annotator "TA"]
[PlyCount "210"]
[EventDate "2022.04.08"]
[EventCountry "GER"]
[SourceTitle "playchess.com"]
[Source "ChessBase"]
[SourceQuality "1"]
[TimeControl "5400+30"]

{[%evp 9,210,0,0,0,0,0,-4,-2,0,0,0,0,0,0,14,14,20,0,0,0,9,-6,23,0,16,33,37,-22,-25,0,133,126,138,124,130,130,125,121,158,160,223,249,241,260,314,312,301,293,285,210,342,316,301,274,253,0,164,164,239,123,307,0,116,0,0,0,0,0,0,0,0,0,0,0,0,0,0,0,0,0,0,0,0,-166,-166,-166,-166,-166,-166,-208,-208,-208,-208,-336,-41,-41,-41,-79,-8,-8,-8,-8,-8,-8,0,-8,0,-8,0,0,0,0,0,0,0,-8,0,-8,-8,-8,-8,-8,-8,-8,0,0,0,-8,0,0,0,-8,0,0,0,0,0,0,0,0,0,0,0,0,0,0,0,0,0,0,0,0,0,0,0,0,0,0,0,0,0,0,0,-7,0,0,0,0,0,-8,-8,-8,-8,-8,-8,-8,-8,-8,0,-8,-8,-8,0,-8,-8,-8,-8,-8,0,0,0,-8,0,0,0,0,0,-8,0,0,0,0,0]} 1. e4 {[%emt 0:14:08]} c5 {[%emt 0:00:12]} 2. Nf3 {[%emt 0:05:34]} e6 {[%emt 0:00:18]} 3. Nc3 {[%emt 0:04:56]} Nc6 {[%emt 0:00:47]} 4. Bb5 {[%emt 0:01:23]} Nd4 {[%emt 0:00:17]} 5. Bc4 {[%emt 0:03:18]} a6 {[%emt 0:00:21]} 6. Nxd4 {[%emt 0:01:33] B30: Sicilian: 2...Nc6 3 Bb5, lines without ...g6.} cxd4 {[%emt 0:01:01]} 7. Ne2 {[%emt 0:00:06][%cal Bc3e2,Be2d4,Bd4f3,Bf3e5][%mdl 32]} Bc5 {[%emt 0:00:23]} 8. b4 {[%emt 0:06:47]} Bxb4 {[%emt 0:10:13]} 9. Nxd4 {[%emt 0:00:33] [#]} Qh4 $146 {[%emt 0:09:02]} ({Predecessor:} 9... Qc7 10. Bd3 d5 11. Bb2 dxe4 12. Bxe4 Nf6 13. Bd3 O-O 14. O-O Re8 15. Rb1 Bd6 {1-0 (63) Alonso Moyano,J (2411)-Boix Moreno,D (2237) Barcelona 2018}) 10. Bd3 {[%emt 0:09:22]} Bc5 $1 {[%emt 0:03:04]} 11. c3 {[%emt 0:03:01]} e5 {[%emt 0:03:06] [#]} 12. g3 $1 {[%emt 0:00:17]} Qf6 {[%emt 0:01:28]} 13. Nf3 {[%emt 0:04:43]} Ne7 {[%emt 0:02:44]} 14. O-O {[%emt 0:01:03]} O-O {[%emt 0:01:19]} 15. Be2 {[%emt 0:01:24] And now d4 would win.} d5 {[%emt 0:15:07]} 16. d4 {[%emt 0:00:41]} dxe4 {[%emt 0:01:34]} 17. Nxe5 {[%emt 0:06:19]} Bd6 {[%emt 0:04:10]} 18. f4 {[%emt 0:01:40]} ({White should try} 18. Nc4 $1 $14) 18... b5 {[%emt 0:06:57]} 19. a4 {[%emt 0:22:50]} Nd5 {[%emt 0:03:52]} (19... b4 $11) 20. Qb3 $16 {[%emt 0:05:49]} Be6 {[%emt 0:01:26][%cal Od5e3]} 21. f5 $1 {[%emt 0:00:10]} Nf4 {[%emt 0:00:38]} 22. Qb2 {[%emt 0:00:29]} Nxe2+ {[%emt 0:08:26]} 23. Qxe2 {[%emt 0:00:06] Black must now prevent Ng4.} Bd5 {[%emt 0:08:17]} 24. Nd7 {[%emt 0:01:50]} Qd8 {[%emt 0:00:29]} (24... Qe7 $16 25. Nxf8 Bc4) 25. Nxf8 $18 {[%emt 0:00:10]} Bc4 {[%emt 0:00:24] [#]} 26. Qxe4 {[%emt 0:00:30][%cal Of8h7]} Bxf1 {[%emt 0:01:07] [#] This bishop pair is nice.} (26... Bxf8 27. axb5) 27. Ne6 $1 {[%emt 0:02:39][%mdl 512]} fxe6 {[%emt 0:01:00]} 28. Kxf1 {[%emt 0:00:26]} (28. Qxe6+ Kh8 $18) 28... bxa4 {[%emt 0:01:01]} 29. fxe6 {[%emt 0:01:56]} Rc8 {[%emt 0:02:40]} (29... Qf6+ {keeps fighting.} 30. Kg2 (30. Bf4 Re8 $16) 30... Rf8) 30. Qd5 {[%emt 0:01:01]} (30. Bf4 Bxf4 31. Qxf4 Qe7 $18) 30... Qf6+ {[%emt 0:01:40]} (30... Qf8+ $2 31. Kg1 Be7 32. Rxa4) 31. Kg2 {[%emt 0:00:11]} Be7 {[%emt 0:01:23]} 32. Bd2 $2 {[%emt 0:00:32]} (32. Ba3 $1 $18 Bxa3 33. Rxa3) 32... Rd8 $2 {[%emt 0:00:25]} (32... Rf8 $11 33. Bf4 Qg6) 33. Qe4 $1 {[%emt 0:00:26]} ({Don't play} 33. Qf3 $6 Qxe6 34. Rxa4 Rf8 $16) 33... a3 {[%emt 0:00:07]} (33... Rf8 $142 34. Qe2 a3) 34. Bf4 {[%emt 0:00:46]} (34. Rf1 $18 Qg6 35. Qxg6 hxg6 36. Bf4 (36. Ra1 Rb8 $16)) 34... Rc8 $2 {[%emt 0:00:51]} (34... g5 $16) 35. Bd2 $2 {[%emt 0:00:33]} ({White should play} 35. h4 $18 {Bg5 is the strong threat.} h6 36. Ra2) 35... Rf8 {[%emt 0:01:23] [#]} (35... Rd8 $1 $11 {remains equal.}) 36. Qe2 {[%emt 0:00:22] Active counter play!} ({White has to play} 36. Be3 $1 $16) 36... Qf5 $11 {[%emt 0:00:42]} 37. Bc1 {[%emt 0:00:29]} Qd5+ {[%emt 0:00:47]} 38. Kg1 {[%emt 0:00:14]} Qb3 {[%emt 0:00:09]} 39. Bxa3 $1 {[%emt 0:01:05]} Bxa3 {[%emt 0:00:30]} 40. Qa2 $1 {[%emt 0:00:01]} Qxa2 {[%emt 0:02:54]} 41. Rxa2 {[%emt 0:00:02][%mdl 4096] Endgame KRB-KR} Be7 {[%emt 0:07:23] Threatens to win with ...Ra8.} 42. Rxa6 {[%emt 0:00:18]} g6 {[%emt 0:00:00]} 43. Ra7 {[%emt 0:00:00]} Re8 {[%emt 0:00:00]} 44. Rd7 {[%emt 0:00:00]} Bf6 {[%emt 0:00:00]} 45. d5 {[%emt 0:00:00]} Bxc3 {[%emt 0:00:00]} 46. e7 $2 {[%emt 0:00:00]} (46. Kf2 $11 {and White is okay.}) 46... Bf6 $19 {[%emt 0:00:00] Hoping for ...Kf7.} 47. d6 {[%emt 0:00:00]} Kf7 {[%emt 0:00:00] aiming for ...Ke6.} 48. Rb7 {[%emt 0:00:00] Strongly threatening d7.} Ra8 {[%emt 0:00:00]} 49. e8=Q+ {[%emt 0:00:00]} Kxe8 {[%emt 0:00:00]} 50. Rxh7 {[%emt 0:00:00]} Rd8 {[%emt 0:00:00]} 51. h4 {[%emt 0:00:00]} (51. Kg2 {was called for.}) 51... Rxd6 $2 {[%emt 0:00:00]} (51... Rd7 $19 52. Rxd7 Kxd7) 52. g4 $1 $15 {[%emt 0:00:00][%cal Bg3g4,Bg4g5][%mdl 32]} Kf8 {[%emt 0:00:00]} 53. g5 $1 {[%emt 0:00:00] [#]} Bg7 {[%emt 0:00:00]} (53... Kg8 $1 $17 54. Rb7 Bg7) 54. h5 $11 {[%emt 0:00:00] The position is equal.} Rd5 {[%emt 0:00:00]} 55. hxg6 {[%emt 0:00:00]} Rxg5+ {[%emt 0:00:00]} 56. Kf2 {[%emt 0:00:00]} Rxg6 {[%emt 0:00:00]} 57. Kf3 {[%emt 0:00:00]} Ra6 {[%emt 0:00:00]} 58. Ke4 {[%emt 0:00:00]} Ra5 {[%emt 0:00:00]} 59. Rh1 {[%emt 0:00:00]} Kf7 {[%emt 0:00:00]} 60. Rb1 {[%emt 0:00:00]} Bf8 {[%emt 0:00:00]} 61. Rf1+ {[%emt 0:00:00]} Ke7 {[%emt 0:00:00]} 62. Rf5 {[%emt 0:00:00]} Ra4+ {[%emt 0:00:00]} 63. Kd5 {[%emt 0:00:00]} Bg7 {[%emt 0:00:00]} 64. Rf1 {[%emt 0:00:00]} Bf6 {[%emt 0:00:00]} 65. Rb1 {[%emt 0:00:00]} Rd4+ {[%emt 0:00:00]} 66. Kc5 {[%emt 0:00:00]} Rd2 {[%emt 0:00:00]} 67. Re1+ {[%emt 0:00:00]} Kd7 {[%emt 0:00:00]} 68. Re4 {[%emt 0:00:00]} Be7+ {[%emt 0:00:00]} 69. Kc4 {[%emt 0:00:00]} Bd6 {[%emt 0:00:00]} 70. Rd4 {[%emt 0:00:00]} Rh2 {[%emt 0:00:00]} 71. Rg4 {[%emt 0:00:00]} Ra2 {[%emt 0:00:00]} 72. Kd5 {[%emt 0:00:00]} Ra5+ {[%emt 0:00:00]} 73. Ke4 {[%emt 0:00:00]} Kc6 {[%emt 0:00:00]} 74. Rg8 {[%emt 0:00:00]} Ra4+ {[%emt 0:00:00]} 75. Kd3 {[%emt 0:00:00]} Kd5 {[%emt 0:00:00]} 76. Rd8 {[%emt 0:00:00]} Ra3+ {[%emt 0:00:00]} 77. Kc2 {[%emt 0:00:00]} Kc5 {[%emt 0:00:00]} 78. Kb2 {[%emt 0:00:00]} Rd3 {[%emt 0:00:00]} 79. Kc2 {[%emt 0:00:00]} Rh3 {[%emt 0:00:00]} 80. Kd2 {[%emt 0:00:00]} Be5 {[%emt 0:00:00]} 81. Ke2 {[%emt 0:00:27]} Bd4 {[%emt 0:00:00]} 82. Kd2 {[%emt 0:01:39]} Kc4 {[%emt 0:00:00]} 83. Ke2 {[%emt 0:04:22]} Re3+ {[%emt 0:00:00]} 84. Kd2 {[%emt 0:00:20]} Rf3 {[%emt 0:00:00]} 85. Rc8+ {[%emt 0:00:25]} Bc5 {[%emt 0:00:00]} 86. Ke2 {[%emt 0:00:27]} Rf2+ {[%emt 0:00:00]} 87. Ke1 {[%emt 0:00:02]} Rc2 {[%emt 0:00:00]} 88. Kd1 {[%emt 0:01:03]} Ra2 {[%emt 0:00:00]} 89. Kc1 {[%emt 0:01:50]} Rh2 {[%emt 0:00:00]} 90. Kb1 {[%emt 0:00:12]} Kb4 {[%emt 0:00:00]} 91. Kc1 {[%emt 0:00:14]} Bd4 {[%emt 0:00:00]} 92. Kd1 {[%emt 0:00:13]} Bc3 {[%emt 0:00:00]} 93. Re8 {[%emt 0:11:00]} Kb3 {[%emt 0:00:08] ( -> ...Rd2+)} 94. Re3 {[%emt 0:01:10]} Ra2 {[%emt 0:01:09]} 95. Rf3 {[%emt 0:00:25]} Kc4 {[%emt 0:00:19]} 96. Kc1 {[%emt 0:01:09]} Rh2 {[%emt 0:00:49]} 97. Kd1 {[%emt 0:00:53]} Rd2+ {[%emt 0:00:06]} 98. Ke1 {[%emt 0:00:14]} Kd4 {[%emt 0:00:06]} 99. Kf1 {[%emt 0:00:50]} Rc2 {[%emt 0:00:06]} 100. Rf2 {[%emt 0:00:26]} Rc1+ {[%emt 0:00:05]} 101. Kg2 {[%emt 0:00:18]} Ke3 {[%emt 0:00:02]} 102. Rf3+ {[%emt 0:00:11]} Ke4 {[%emt 0:00:03]} 103. Rf1 {[%emt 0:00:31]} Be1 {[%emt 0:00:12]} 104. Rf8 {[%emt 0:00:18]} Rc2+ {[%emt 0:00:17]} 105. Kf1 {[%emt 0:00:14]} Bg3 {[%emt 0:00:05] White used his chance.  Weighted Error Value: White=0.24 (precise) /Black=0.36} 1/2-1/2

[Event "BSV-SCK IM 2022"]
[Site "Berlin"]
[Date "2022.04.09"]
[Round "3.1"]
[White "Ermitsch, Magnus"]
[Black "Vogel, Constantin"]
[Result "0-1"]
[ECO "C11"]
[WhiteElo "2127"]
[BlackElo "2209"]
[Annotator "TA"]
[PlyCount "52"]
[EventDate "2022.04.08"]
[EventCountry "GER"]
[SourceTitle "playchess.com"]
[Source "ChessBase"]
[SourceQuality "1"]
[TimeControl "5400+30"]

{[%evp 14,52,23,3,18,14,14,14,14,14,14,8,16,12,17,0,-9,-10,21,-19,-19,-22,-33,-22,-35,-125,-104,-142,-15,-16,-9,-10,-10,-64,0,-39,11,-366,-128,-1388,-1290]} 1. e4 {[%emt 0:00:04]} e6 {[%emt 0:00:05]} 2. d4 {[%emt 0:00:12]} d5 {[%emt 0:00:06]} 3. Nc3 {[%emt 0:00:05]} Nf6 {[%emt 0:00:06]} 4. e5 {[%emt 0:00:32]} Nfd7 {[%emt 0:00:07]} 5. f4 {[%emt 0:00:09]} c5 {[%emt 0:00:10]} 6. Nf3 {[%emt 0:00:09]} Nc6 {[%emt 0:00:25]} 7. Be3 {[%emt 0:00:06]} a6 {[%emt 0:00:33]} 8. a3 {[%emt 0:00:20]} b5 {[%emt 0:01:35] C11: French: Classical System: 4 e5 and 4 Bg5 dxe4.} (8... cxd4 {feels hotter.} 9. Nxd4 Bc5 10. Qd2 O-O) 9. dxc5 {[%emt 0:00:17]} Bxc5 {[%emt 0:01:17]} 10. Bxc5 {[%emt 0:00:08]} Nxc5 {[%emt 0:00:07] The position is equal.} 11. b4 {[%emt 0:00:05]} Nd7 {[%emt 0:02:27]} 12. Bd3 {[%emt 0:00:21]} Qb6 {[%emt 0:03:07]} 13. Qd2 {[%emt 0:00:30]} Bb7 {[%emt 0:00:30]} 14. Ne2 {[%emt 0:00:30]} f6 {[%emt 0:00:30]} 15. exf6 {[%emt 0:00:30] [#]} gxf6 $146 {[%emt 0:00:30]} ({Predecessor:} 15... Nxf6 16. Nfd4 O-O 17. c3 e5 18. fxe5 Nxe5 19. O-O Ne4 20. Qe3 Nc4 21. Qh3 Rae8 {1-0 (66) Sethuraman,S (2644)-Rastbod,A (2321) Chess.com INT 2020}) 16. a4 {[%emt 0:00:30]} bxa4 $1 {[%emt 0:00:30]} 17. c3 {[%emt 0:00:30]} a5 {[%emt 0:00:30][%cal Ra5b4]} 18. b5 {[%emt 0:00:30]} Ne7 {[%emt 0:00:30]} 19. Ng3 {[%emt 0:00:30]} (19. Bc2 $15) 19... Nc5 $17 {[%emt 0:00:30][%cal Od5d4]} 20. Qe3 {[%emt 0:00:30]} d4 {[%emt 0:00:30]} (20... Nxd3+ $17 21. Qxd3 O-O) 21. cxd4 $11 {[%emt 0:00:30]} Nb3 {[%emt 0:00:30]} 22. Rxa4 {[%emt 0:00:30] And now Bc4 would win.} Nd5 {[%emt 0:00:30]} 23. Qf2 {[%emt 0:00:30] Strongly threatening 0-0.} Nxf4 {[%emt 0:00:30] &Nero is more active.} (23... Nb4 $1 $15 24. Be2 Nc2+ 25. Kf1 Rc8) 24. Be2 {[%emt 0:00:30]} ({Don't play} 24. Bc4 Nxg2+ $1 25. Kd1 (25. Qxg2 Nxd4 26. Rf1 Qc5 $17) 25... Rc8 $1 $15) 24... h5 {[%emt 0:00:30]} ({Better is} 24... Nxe2 $15 25. Qxe2 O-O) 25. h4 $2 {[%emt 0:00:30][%mdl 8192]} (25. Nh4 $11 e5 26. dxe5 Qxf2+ 27. Kxf2 Nxe2 28. Nxe2) 25... Rg8 $2 {[%emt 0:00:30]} (25... Nc1 $19 26. Kd2 Ncxe2 27. Nxe2 {[#]} Qxb5 $1 28. Nxf4 Qxa4) 26. O-O $2 {[%emt 0:00:30][%mdl 8192] [#]} (26. d5 $17 Qc7 27. Rc4 Nxg2+ 28. Qxg2 Qxg3+ 29. Qxg3 Rxg3 30. d6) 26... Rxg3 $1 {[%emt 0:00:30][%mdl 512] Weighted Error Value: White=0.75/Black=0.40} 0-1

[Event "BSV-SCK IM 2022"]
[Site "Berlin"]
[Date "2022.04.09"]
[Round "3.2"]
[White "Mirzoev, Emil"]
[Black "Glek, Igor"]
[Result "1-0"]
[ECO "B28"]
[WhiteElo "2460"]
[BlackElo "2476"]
[Annotator "TA"]
[PlyCount "57"]
[EventDate "2022.04.08"]
[EventCountry "GER"]
[SourceTitle "playchess.com"]
[Source "ChessBase"]
[SourceQuality "1"]
[TimeControl "5400+30"]

{[%evp 10,57,16,29,45,40,33,35,46,40,79,42,46,54,102,73,94,102,108,97,107,111,104,108,441,418,407,403,403,418,406,396,383,401,776,785,711,625,637,609,580,397,495,514,526,517,597,589,548,501]} 1. e4 {[%emt 0:00:02][%cal Be2e4,Be4e5][%mdl 32]} e6 {[%emt 0:03:31]} 2. d4 {[%emt 0:00:13]} d5 {[%emt 0:00:02]} 3. e5 {[%emt 0:00:05]} c5 {[%emt 0:00:14]} 4. c3 {[%emt 0:00:03]} Bd7 {[%emt 0:01:02]} 5. Nf3 {[%emt 0:00:28]} a6 {[%emt 0:00:05]} 6. Bd3 {[%emt 0:01:17]} cxd4 {[%emt 0:00:09] B28: Sicilian: 2 Nf3 a6 (O'Kelly Variation).} 7. cxd4 {[%emt 0:00:11]} Bb5 {[%emt 0:00:05]} 8. Bc2 {[%emt 0:01:06]} a5 {[%emt 0:00:57] White is slightly better.} 9. Nc3 {[%emt 0:01:28]} Bb4 {[%emt 0:01:14]} 10. a3 {[%emt 0:01:31]} Bxc3+ {[%emt 0:00:06]} 11. bxc3 {[%emt 0:00:02] [#]} a4 $146 {[%emt 0:00:28]} (11... Ne7 $14) ({Predecessor:} 11... Ne7 12. a4 Ba6 13. Ba3 h6 14. h4 Qc7 15. Qd2 Nd7 16. Bd3 Bxd3 17. Qxd3 Rc8 {1-0 (52) Goumas,G (2371)-Koerant,F (1923) Nikaia 2014}) 12. h4 {[%emt 0:05:35]} Qc7 {[%emt 0:09:07]} 13. Rb1 {[%emt 0:03:26]} Qxc3+ {[%emt 0:04:43]} 14. Bd2 {[%emt 0:00:11]} Qc6 {[%emt 0:00:08]} 15. Ng5 $36 {[%emt 0:00:35][%cal Od1h5][%mdl 2048] And now Qh5! would win. Black is under strong pressure.} Nh6 {[%emt 0:02:47]} 16. Rh3 {[%emt 0:06:49][%cal Od1h5] Black must now prevent Qh5! &Bianco is more active.} ({But not} 16. Bxh7 Qd7 $14) 16... Nf5 $2 {[%emt 0:03:28][%mdl 8192] Loses the game.} (16... Qc4 $2 17. Bd3 Qxd4 18. Bxb5+ Nc6 19. Qc2 Qxe5+ 20. Kf1 $18) (16... Nd7 $16 {is a better chance.}) 17. Bxf5 $18 {[%emt 0:04:22]} exf5 {[%emt 0:00:06]} 18. Qh5 {[%emt 0:04:58][%csl LRf7,LRh7]} g6 {[%emt 0:03:00] [#]} 19. Qh6 {[%emt 0:00:17]} Nd7 {[%emt 0:03:14]} (19... Qc4 $2 {[#]} 20. Rxb5 $1 Qxb5 21. Qg7 Qb1+ 22. Ke2 $18) 20. Qg7 {[%emt 0:00:12]} O-O-O {[%emt 0:00:50]} 21. Nxf7 {[%emt 0:00:15]} Rhg8 {[%emt 0:00:45]} (21... Rdg8 $142) 22. Qxh7 {[%emt 0:03:07]} Kb8 {[%emt 0:01:23]} 23. Nxd8 {[%emt 0:02:24]} Rxd8 {[%emt 0:00:05]} 24. Qe7 {[%emt 0:00:46]} Rc8 {[%emt 0:00:02]} 25. Qd6+ {[%emt 0:00:33]} Ka7 {[%emt 0:01:18]} 26. Qxc6 {[%emt 0:00:24] White is clearly winning.} Bxc6 {[%emt 0:00:29]} 27. Bb4 {[%emt 0:01:26]} Re8 {[%emt 0:00:21]} 28. Kd2 {[%emt 0:00:27]} Ka6 {[%emt 0:00:06]} 29. Ke3 {[%emt 0:01:57] Weighted Error Value: White=0.16 (very precise) /Black=0.50} 1-0